Cogmind - Beta 13 @@@ ROGUE MODE // 2024.06.01 @ 14:22:36 Player: N.W.L Result: Destroyed by Enhanced Grunt with Neutron Cannon Performance ------------- Evolutions (3) 1500 Regions Visited (11) 2200 Robots Destroyed (140) 700 Value Destroyed (4190) 4190 Prototype IDs (249) 4980 Alien Tech Used (1) 200 Bonus (3655) 3655 TOTAL SCORE: 17425 Bonus ------- High Alert Combat Kills 55 Aligned with FarCom 300 Met Data Miner 300 Used Data Conduit 3000 Cogmind --------- Core Integrity 0/700 Matter 295/300 Energy 550/550 System Corruption 37% Temperature Cool (0) Movement Rolling (175) Ox5 Location -7/Data Miner Parts ------- > --- POWER (2) -------- Antimatter Reactor Antimatter Reactor > --- PROPULSION (4) --- Enhanced Flexi-carbon Leg Compact Wheel > --- UTILITY (5) ------ Advanced Heat Sink High-capacity Storage Unit Improved Light Armor Plating Improved Light Armor Plating Experimental Thermal Shield > --- WEAPON (3) ------- Neutron Cannon Remote Datajack Longsword +1 (fused) > --- INVENTORY (20) --- Compact Wheel Small Matter Pod (50) Medium Matter Pod (100) Matter Filter Advanced Particle Charger Kinecellerator Launcher Loader Advanced Actuator Array Advanced ECM Suite Tractor Beam Improved Trap Extractor (5/6 Fire) Recalibrator Particle Gun Gatling Laser Battle Cannon Plasma Cutter Molecular Deconstructor Peak State ------------ > --- POWER ------------ Antimatter Reactor Antimatter Reactor > --- PROPULSION ------- Improved Carbon-fiber Leg Enhanced Flexi-carbon Leg Compact Wheel > --- UTILITY ---------- Advanced Heat Sink High-capacity Storage Unit Improved Light Armor Plating Improved Light Armor Plating Experimental Thermal Shield > --- WEAPON ----------- Neutron Cannon Remote Datajack Longsword +1 > --- INVENTORY -------- Compact Wheel Small Matter Pod Medium Matter Pod Matter Filter Advanced Particle Charger Kinecellerator Launcher Loader Advanced Actuator Array Advanced ECM Suite Tractor Beam Improved Trap Extractor Recalibrator Particle Gun Gatling Laser Battle Cannon Plasma Cutter Molecular Deconstructor [Rating: 73] Favorites ----------- Power Ion Engine Engine Ion Engine Power Core Micro Nuclear Core Reactor Antimatter Reactor Propulsion Light Treads Treads Light Treads Leg Improved Carbon-fiber Leg Wheel Wheel Utility High-capacity Storage Unit Device Improved Cooling System Storage High-capacity Storage Unit Processor Advanced Visual Processing Unit Hackware Hacking Suite Protection Hardened Light Armor Plating Weapon Light Assault Rifle Energy Gun Gatling Laser Energy Cannon Ion Cannon Ballistic Gun Light Assault Rifle Ballistic Cannon Advanced Assault Cannon Launcher Grenade Launcher Special Weapon Remote Datajack Slashing Weapon Longsword +1 Special Melee Weapon Datajack Build | -11 -10 -10 -10 -9 -8 -7 -7 -7 -7 -7 -7 ------- Run | Yrd Mat Min Exi Min Mat Fac Was Fac Low Low Dat Slots Evolved 6 | . . . . . 4 2 . . . . . Power . | . . . . . . . . . . . . Propulsion 2 | . . . . . 2 . . . . . . Utility 3 | . . . . . 2 1 . . . . . Weapon 1 | . . . . . . 1 . . . . . Parts Attached 225 | 7 12 7 3 8 48 21 12 33 30 35 9 Power 14 | 1 1 . . . 4 . . 2 2 2 2 Engine 4 | 1 1 . . . 1 . . 1 . . . Core 8 | . . . . . 3 . . 1 2 2 . Reactor 2 | . . . . . . . . . . . 2 Propulsion 49 | 2 2 1 . . 16 2 2 7 8 8 1 Treads 33 | 2 2 1 . . 16 2 2 2 5 1 . Leg 2 | . . . . . . . . . . 1 1 Wheel 14 | . . . . . . . . 5 3 6 . Hover . | . . . . . . . . . . . . Flight . | . . . . . . . . . . . . Utility 63 | 2 2 1 1 1 8 5 3 7 13 16 4 Device 27 | 1 . . . . 1 2 3 3 6 9 2 Storage 9 | 1 1 1 1 . 1 . . 2 . 2 . Processor 4 | . . . . . 2 1 . . . 1 . Hackware 4 | . . . . 1 1 1 . . 1 . . Protection 19 | . 1 . . . 3 1 . 2 6 4 2 Artifact . | . . . . . . . . . . . . Weapon 99 | 2 7 5 2 7 20 14 7 17 7 9 2 Energy Gun 10 | 2 1 . . . . 5 . 1 . 1 . Energy Cannon 5 | . . . . . 2 1 1 . . . 1 Ballistic Gun 35 | . 4 4 1 3 11 2 2 4 1 3 . Ballistic Cannon 23 | . . . . 1 1 2 3 8 3 5 . Launcher 9 | . 1 1 . 3 3 1 . . . . . Special Weapon 3 | . 1 . . . . . . . 1 . 1 Impact Weapon . | . . . . . . . . . . . . Slashing Weapon 13 | . . . . . 3 3 1 4 2 . . Piercing Weapon . | . . . . . . . . . . . . Special Melee Weapon 1 | . . . 1 . . . . . . . . Unidentified Prototypes 4 | . . . . . 1 1 . . 2 . . Corrupted Parts 2 | . . . . . . . 2 . . . . System Corruption 9 | . . . . . . . 9 . . . . Parts Lost 52 | . 1 . . 1 11 1 3 7 8 17 3 Power 5 | . . . . . 2 . . 1 . 2 . Propulsion 21 | . . . . . 4 . 2 2 4 7 2 Utility 16 | . 1 . . 1 2 1 . 3 2 5 1 Weapon 10 | . . . . . 3 . 1 1 2 3 . Highest Loss Streak 10 | . 1 . . 1 5 1 3 6 8 10 2 To Critical Strikes . | . . . . . . . . . . . . Average Slot Usage (%) 91 | . 98 100 100 99 97 96 52 79 87 81 88 Engine 4 | . 14 14 14 14 2 . . . . . . Core 4 | . . . . . 6 7 3 2 7 13 9 Treads 22 | . 28 28 28 28 34 26 15 15 9 11 . Wheel 5 | . . . . . . . . 9 20 11 14 Device 6 | . 11 . . . 1 2 4 9 10 12 10 Storage 9 | . 14 14 14 14 9 7 3 6 7 6 7 Processor 2 | . . . . . 7 16 9 . . . . Hackware 2 | . . . . 2 9 6 1 . . . . Protection 8 | . 1 14 14 11 7 3 . 12 8 6 17 Energy Gun 1 | . 8 . . . . 3 . 1 . . . Ballistic Gun 11 | . 19 26 20 24 12 6 1 5 6 4 . Ballistic Cannon 4 | . . . . 2 4 8 6 9 5 5 . Slashing Weapon 2 | . . . . . 1 2 4 3 7 7 7 Naked Turns 1 | . . . . . . . 1 . . . . Heaviest Build 233 | 14 30 50 48 50 62 76 68 233 233 229 103 Greatest Support 107 | 40 40 40 40 40 104 107 107 66 86 86 48 Greatest Overweight (x) 11 | . . 1 1 1 . . 1 11 5 11 6 Average Overweight (x) 1 | . . . 1 1 . . . 5 4 4 1 Largest Inventory Capacity 35 | 8 15 20 20 20 20 20 20 35 35 35 20 Average Capacity 24 | 7 11 19 20 20 20 20 11 33 35 30 20 Most Carried 35 | 4 15 20 20 20 20 20 20 33 35 30 20 Average Carried 19 | 2 10 18 19 19 19 19 11 16 32 23 19 Final Capacity 35 | 8 15 20 20 20 20 20 5 35 35 20 20 Final Carried 33 | 4 15 20 20 20 18 20 5 33 30 19 19 Class Distribution -------------------- 39% | Mutant 23% | Hauler-Mutant 13% | Scavenger-Mutant 10% | Hauler-Tank 7% | Skirmisher Dominant Class ---------------- Mutant | -10/Materials Mutant | -10/Mines Mutant | -10/Exiles Mutant | -9/Mines Scavenger-Mutant | -8/Materials Skirmisher | -7/Factory Mutant | -7/Waste Hauler-Tank | -7/Factory Hauler-Mutant | -7/Lower Caves Hauler-Mutant | -7/Lower Caves Scavenger-Mutant | -7/Data Miner Resources | -11 -10 -10 -10 -9 -8 -7 -7 -7 -7 -7 -7 ----------- Run | Yrd Mat Min Exi Min Mat Fac Was Fac Low Low Dat Matter Collected 6102 | 270 370 119 84 123 1487 82 510 909 905 1037 206 Remotely 1245 | . . . . . . . . 445 265 535 . Salvage Created 5421 | 225 742 185 . 89 1488 144 505 806 307 598 332 Parts 248 | 21 45 10 . 3 88 11 . 35 15 10 10 Haulers Intercepted 4 | . 2 . . . 1 . . 1 . . . Recyclers Shooed 4 | . 1 . . . 2 . . 1 . . . Parts Field Recycled 24 | . . . . . . 24 . . . . . Retrieved Matter 235 | . . . . . . 235 . . . . . Parts Self-Destructed 20 | . . . . . . . . . 13 7 . Prevented . | . . . . . . . . . . . . Kills | -11 -10 -10 -10 -9 -8 -7 -7 -7 -7 -7 -7 ------- Run | Yrd Mat Min Exi Min Mat Fac Was Fac Low Low Dat Combat Hostiles Destroyed 88 | . 12 9 . 6 30 1 3 11 6 7 3 Melee 6 | . . . . . . . . 3 . . 3 Guns 31 | . 9 4 . 1 11 1 . 1 1 3 . Cannons 25 | . . . . . 6 . 3 7 5 4 . AOE 26 | . 3 5 . 5 13 . . . . . . Classes Destroyed 20 | 3 6 . . 4 3 1 1 . 2 . . Worker 9 | 2 1 . . . 2 . . 4 . . . Builder 3 | . . . . . 2 . . 1 . . . Tunneler 12 | 6 2 1 . . 2 1 . . . . . Hauler 4 | . 2 . . . 1 . . 1 . . . Recycler 14 | 1 2 1 . . 5 1 . 4 . . . Minesweeper 1 | . . . . . . . . . 1 . . Mechanic 2 | . . . . 1 . . . 1 . . . Operator 3 | . 2 . . . 1 . . . . . . Watcher 5 | . 2 . . . 3 . . . . . . Swarmer 15 | . 2 9 . . 4 . . . . . . Grunt 41 | . 9 . . 2 18 . . 5 . 7 . Brawler 1 | . . . . 1 . . . . . . . Duelist 1 | . . . . 1 . . . . . . . Sentry 8 | . . . . . 6 . . 2 . . . Specialist 3 | . . . . . . . . . 3 . . Hunter 4 | . . . . . 2 . . . 2 . . Programmer 6 | . . . . . . 1 . 4 1 . . Compactor 3 | . . . . . . . 3 . . . . Enhanced Grunt 3 | . . . . . . . . . . . 3 Subdweller 1 | . 1 . . . . . . . . . . Decomposer 2 | . . . . . . . . . 2 . . Assembled 2 | . . . . 2 . . . . . . . Best Kill Streak 10 | 6 4 3 . 5 10 2 1 3 5 2 1 Combat Bots Only 9 | . 4 3 . 4 9 1 1 2 5 2 1 Max Kills in Single Turn 3 | 1 1 2 . 3 3 1 1 2 1 1 1 Gunslinging 1 | . . 1 . . . . . . . . . Exploded 3 | . 1 2 . 2 3 . . . . . . Melee 1 | . . . . . . . . 1 . . 1 Uniques/NPCs Destroyed 1 | . . . . . . . . . . . 1 Data Miner (-7/Data Miner) Combat | -11 -10 -10 -10 -9 -8 -7 -7 -7 -7 -7 -7 -------- Run | Yrd Mat Min Exi Min Mat Fac Was Fac Low Low Dat Hostile Shots Fired 789 | . 56 21 . 20 201 10 3 177 146 130 25 Missed 219 | . 15 7 . 6 56 4 . 58 48 20 5 Damage Taken 9106 | . 532 131 . 341 2291 92 118 1324 1806 1766 705 Core 1184 | . 64 21 . 16 372 . 40 144 217 175 135 Absorbed by Shields . | . . . . . . . . . . . . Redirected to Shielding 13 | . . 4 . 4 5 . . . . . . Ignored by Resistances 219 | . . . . . . . . . . . 219 Regen/Repaired (Parts) 673 | . 249 . . . 108 . . 316 . . . Core Remaining (%) 63 | 100 . . . 59 32 . . . . . . Volleys Fired 407 | 16 104 16 . 15 131 7 20 37 20 40 1 Largest 3 | 2 2 2 . 2 2 2 3 3 3 2 1 Hottest 171 | 90 100 50 . 60 83 108 171 144 124 96 5 Shots Fired 820 | 32 201 27 . 27 246 11 54 94 58 69 1 Gun 537 | 32 196 21 . 21 168 11 4 35 18 31 . Cannon 249 | . . . . . 63 . 50 59 39 38 . Launcher 31 | . 4 6 . 6 15 . . . . . . Special 3 | . 1 . . . . . . . 1 . 1 Kinetic 637 | . 115 21 . 21 216 4 46 88 57 69 . Thermal 140 | 32 72 . . . 15 7 8 6 . . . Explosive 31 | . 4 6 . 6 15 . . . . . . Electromagnetic 10 | . 10 . . . . . . . . . . Robot Hit Streak 20 | 5 9 4 . 10 20 5 15 8 8 7 8 Robot Miss Streak 10 | 2 5 1 . 4 10 2 1 6 4 5 . Penetration Max 1 | . . . . . 1 . . . . 1 . Secondary Targets 4 | . . 1 . . 3 . . . . . . Max Gunslinging Chain 1 | . . 1 . . 1 . . . . . . Shots Hit Robots 588 | 20 116 19 9 14 160 9 47 82 32 50 30 Core Hits 279 | 10 47 14 . 17 93 6 10 37 13 20 12 Critical Kills 1 | . . 1 . . . . . . . . . Critical Parts Destroyed 1 | . . . . . . 1 . . . . . Critical Strikes 16 | . 1 1 . . 2 1 . 2 1 3 5 Burn 1 | . 1 . . . . . . . . . . Destroy 2 | . . 1 . . . 1 . . . . . Blast 7 | . . . . . 2 . . 1 1 3 . Sever 6 | . . . . . . . . 1 . . 5 Melee Attacks 99 | . . . 9 . 7 5 . 21 6 12 39 Impact . | . . . . . . . . . . . . Slashing 90 | . . . . . 7 5 . 21 6 12 39 Piercing . | . . . . . . . . . . . . Sneak Attacks 19 | . . . 9 . . . . 7 2 . 1 Combat Hostiles . | . . . . . . . . . . . . Follow-up Attacks . | . . . . . . . . . . . . Damage Inflicted 15589 | 234 1432 484 . 763 3881 207 1301 2789 1012 2141 1345 Guns 4399 | 234 1094 135 . 102 1424 207 76 567 110 450 . Cannons 4306 | . . . . . 763 . 1225 1069 644 605 . Explosions 3040 | . 337 349 . 661 1693 . . . . . . Melee 3830 | . . . . . . . . 1141 258 1086 1345 Ramming 14 | . 1 . . . 1 . . 12 . . . Kinetic 7393 | . 544 135 . 102 2094 61 1126 1522 754 1055 . Thermal 1501 | 234 542 . . . 290 146 175 114 . . . Explosive 2779 | . 273 349 . 661 1496 . . . . . . Electromagnetic 72 | . 72 . . . . . . . . . . Impact . | . . . . . . . . . . . . Slashing 3830 | . . . . . . . . 1141 258 1086 1345 Piercing . | . . . . . . . . . . . . Highest Corruption 37 | . . . . 3 3 1 31 29 37 37 37 Average Corruption 21 | . . . . 3 2 1 15 26 31 37 37 Corruption Purged 5 | . . . . . . . 4 1 . . . Corruption Blocked . | . . . . . . . . . . . . Effects 424 | . . . . 3 56 4 16 132 132 65 16 Message Errors 98 | . . . . 1 10 2 4 34 32 14 1 Matter Fused 109 | . . . . 1 17 2 3 34 26 22 4 Heat Flow Errors 41 | . . . . . 3 . 1 11 17 6 3 Energy Discharges 50 | . . . . 1 6 . 2 16 16 8 1 Parts Rejected 3 | . . . . . . . . 1 1 . 1 Parts Fused 8 | . . . . . 2 . . 3 3 . . Data Loss (minor) 54 | . . . . . 9 . 3 16 16 5 5 Data Loss (major) 15 | . . . . . 3 . . 4 7 1 . Misfires 21 | . . . . . 4 . . 4 9 4 . Alerts 10 | . . . . . 1 . . 5 2 1 1 Misdirections 2 | . . . . . . . 2 . . . . Weapon Failures 13 | . . . . . 1 . 1 4 3 4 . Overload Shots . | . . . . . . . . . . . . Overflow Damage 927 | . 5 6 . 11 35 . . 163 158 549 . Projectiles 80 | . . . . . . . . 31 24 25 . Explosions 57 | . 5 6 . 11 35 . . . . . . Melee 790 | . . . . . . . . 132 134 524 . Knockbacks 31 | . . . . . 5 . . 11 5 10 . Impact . | . . . . . . . . . . . . Kinetic 26 | . . . . . 4 . . 9 5 8 . Secondary 5 | . . . . . 1 . . 2 . 2 . Self-Inflicted Damage 142 | . 88 18 . . 30 . . 6 . . . Shots 7 | . 3 2 . . 2 . . . . . . Rammed 6 | . 2 . . . 1 . . 3 . . . Targets Rammed 6 | . 2 . . . 1 . . 3 . . . Kicked . | . . . . . . . . . . . . Crushed . | . . . . . . . . . . . . Highest Temperature 465 | 222 461 10 . 6 260 108 358 348 255 465 205 Average Temperature 93 | 73 109 7 . 6 49 43 159 77 85 159 80 Received Heat Transfer 2754 | . 246 . . 6 882 . . 495 45 1080 . Effects 9 | . 3 . . . . . . . . 6 . Shutdowns 3 | . 1 . . . . . . . . 2 . Energy Bleed 1 | . 1 . . . . . . . . . . Damage (minor) 1 | . 1 . . . . . . . . . . Damage (major) 4 | . . . . . . . . . . 4 . Siege Activations . | . . . . . . . . . . . . Robots Corrupted . | . . . . . . . . . . . . Combat Hostiles . | . . . . . . . . . . . . Parts Fried . | . . . . . . . . . . . . Impact Corruptions . | . . . . . . . . . . . . Robots Melted . | . . . . . . . . . . . . Combat Hostiles . | . . . . . . . . . . . . Parts Melted 6 | 2 3 . . . . . . 1 . . . Heat Transferred 3078 | 620 1376 . . . 298 300 259 225 . . . Parts Sabotaged . | . . . . . . . . . . . . Parts Stolen . | . . . . . . . . . . . . Parts Stripped . | . . . . . . . . . . . . Power Chain Reactions 2 | . 2 . . . . . . . . . . Alert | -11 -10 -10 -10 -9 -8 -7 -7 -7 -7 -7 -7 ------- Run | Yrd Mat Min Exi Min Mat Fac Was Fac Low Low Dat Peak Influence 575 | 45 180 333 . 91 575 296 54 198 . . . Initial 261 | . 29 40 . . 35 261 38 37 . . . Average 108 | 22 69 111 . 20 175 192 40 57 . . . Maximum Alert Level 2 | . . 1 . . 2 1 . . . . . Low Security (%) 87 | 100 100 80 . 100 77 44 100 100 . . . Level 1 8 | . . 19 . . 7 55 . . . . . Level 2 4 | . . . . . 15 . . . . . . Level 3 . | . . . . . . . . . . . . Level 4 . | . . . . . . . . . . . . Level 5 . | . . . . . . . . . . . . High Security . | . . . . . . . . . . . . Max Security . | . . . . . . . . . . . . Squads Dispatched 19 | . 4 . . 1 5 1 1 7 . . . Investigation 7 | . 2 . . . 3 . . 2 . . . Extermination 5 | . . . . . . 1 . 4 . . . Reinforcement 5 | . 2 . . . 2 . . 1 . . . Assault 2 | . . . . 1 . . 1 . . . . Garrison . | . . . . . . . . . . . . Intercept . | . . . . . . . . . . . . Searches Triggered . | . . . . . . . . . . . . Construction Impeded 1 | . . . . . 1 . . . . . . Haulers Reinforced 1 | . . . . . . . . 1 . . . Active Scanning Responses . | . . . . . . . . . . . . Cargo Convoy Interrupts . | . . . . . . . . . . . . Stealth | -11 -10 -10 -10 -9 -8 -7 -7 -7 -7 -7 -7 --------- Run | Yrd Mat Min Exi Min Mat Fac Was Fac Low Low Dat Distress Signals 7 | . 3 . . . 4 . . . . . . Communications Jammed . | . . . . . . . . . . . . Distress Signals . | . . . . . . . . . . . . Times Spotted 127 | . 28 8 . 13 41 1 7 12 6 7 4 Peak Tracking Total 8 | . 4 3 . 8 6 1 3 4 6 4 2 Tactical Retreats 6 | . 2 . . 2 . . 2 . . . . Traps | -11 -10 -10 -10 -9 -8 -7 -7 -7 -7 -7 -7 ------- Run | Yrd Mat Min Exi Min Mat Fac Was Fac Low Low Dat Traps Triggered 7 | . 1 . . . 2 2 . 2 . . . Indirectly . | . . . . . . . . . . . . Trap Hack Attempts . | . . . . . . . . . . . . Triggered . | . . . . . . . . . . . . Disarmed . | . . . . . . . . . . . . Reprogrammed . | . . . . . . . . . . . . Reused 1 | . . . . . 1 . . . . . . Traps Extracted . | . . . . . . . . . . . . Installed 2 | . . . 1 . 1 . . . . . . Triggered 1 | . . . . . 1 . . . . . . Most Traps Carried 5 | . . 5 5 3 3 . . . 5 5 5 Machines | -11 -10 -10 -10 -9 -8 -7 -7 -7 -7 -7 -7 ---------- Run | Yrd Mat Min Exi Min Mat Fac Was Fac Low Low Dat Machines Disabled 9 | . 1 1 . . 3 . . 3 1 . . Max in Single Turn 1 | . 1 1 . . 1 . . 1 1 . . Machines Repaired . | . . . . . . . . . . . . Machines Dismantled . | . . . . . . . . . . . . Machines Sabotaged . | . . . . . . . . . . . . Overloaded Fab Kills . | . . . . . . . . . . . . Hacking | -11 -10 -10 -10 -9 -8 -7 -7 -7 -7 -7 -7 --------- Run | Yrd Mat Min Exi Min Mat Fac Was Fac Low Low Dat Machines Accessed 35 | . 8 1 2 . 10 3 . 5 2 . 4 Terminals 17 | . 6 1 . . 7 2 . 1 . . . Fabricators 3 | . . . . . . 1 . 2 . . . Repair Stations 4 | . 1 . . . 1 . . 2 . . . Recycling Units 2 | . 1 . . . 1 . . . . . . Scanalyzers 1 | . . . . . 1 . . . . . . Garrison Access . | . . . . . . . . . . . . Total Hacks 121 | . 23 4 5 . 26 10 . 18 6 . 29 Successful 83 | . 14 2 5 . 15 5 . 7 6 . 29 Failed 38 | . 9 2 . . 11 5 . 11 . . . Catastrophic 7 | . 1 . . . 2 1 . 3 . . . Database Lockouts . | . . . . . . . . . . . . Manual 44 | . 11 4 1 . 10 8 . 9 1 . . Terminals 48 | . 16 4 . . 17 6 . 5 . . . Fabricators 12 | . . . . . . 4 . 8 . . . Repair Stations 12 | . 4 . . . 3 . . 5 . . . Recycling Units 7 | . 3 . . . 4 . . . . . . Scanalyzers 2 | . . . . . 2 . . . . . . Garrison Access . | . . . . . . . . . . . . Terminal Hacks 57 | . 6 2 5 . 5 2 . 2 6 . 29 Record 20 | . . . 4 . . . . . 5 . 11 Part Schematic 13 | . 1 1 . . . . . 1 . . 10 Robot Schematic 5 | . . . . . . . . . . . 5 Robot Analysis 4 | . 1 1 . . 1 . . 1 . . . Prototype ID Bank 5 | . 1 . . . 1 . . . . . 3 Open Door 1 | . . . . . . . . . 1 . . Branch Access Points 2 | . . . . . 1 1 . . . . . Machine Index 1 | . . . . . 1 . . . . . . Terminal Index 1 | . 1 . . . . . . . . . . Locate Traps 2 | . . . . . 1 1 . . . . . Registered Components 1 | . 1 . . . . . . . . . . Zone Layout 1 | . 1 . . . . . . . . . . Derelict Proto ID Bank 1 | . . . 1 . . . . . . . . Fabricator Hacks 2 | . . . . . . 1 . 1 . . . Network Status 2 | . . . . . . 1 . 1 . . . Repair Station Hacks 10 | . 4 . . . 2 . . 4 . . . Scan Component 5 | . 2 . . . 1 . . 2 . . . Repair 5 | . 2 . . . 1 . . 2 . . . Recycling Unit Hacks 3 | . 1 . . . 2 . . . . . . Retrieve Components 3 | . 1 . . . 2 . . . . . . Scanalyzer 2 | . . . . . 2 . . . . . . Insert Component 1 | . . . . . 1 . . . . . . Analyze 1 | . . . . . 1 . . . . . . Garrison Access Hacks . | . . . . . . . . . . . . Unauthorized Hacks 9 | . 3 . . . 4 2 . . . . . Terminals 5 | . 2 . . . 2 1 . . . . . Botnet 5 | . 2 . . . 2 1 . . . . . Fabricators 1 | . . . . . . 1 . . . . . Fabnet 1 | . . . . . . 1 . . . . . Repair Stations 1 | . . . . . 1 . . . . . . Mechanics 1 | . . . . . 1 . . . . . . Recycling Units 2 | . 1 . . . 1 . . . . . . Mask 1 | . . . . . 1 . . . . . . Tunnel 1 | . 1 . . . . . . . . . . Scanalyzers . | . . . . . . . . . . . . Garrison Access . | . . . . . . . . . . . . Data Cores Recovered 1 | . 1 . . . . . . . . . . Used 1 | . 1 . . . . . . . . . . Hacking Detections 24 | . 7 1 . . 9 2 . 5 . . . Full Trace Events 7 | . 2 . . . 4 . . 1 . . . Feedback Events 1 | . . . . . 1 . . . . . . Hackware Fried 1 | . . . . . 1 . . . . . . Feedback Blocked . | . . . . . . . . . . . . Robot Schematics Acquired 5 | . . . . . . . . . . . 5 Robots Built . | . . . . . . . . . . . . Authchips . | . . . . . . . . . . . . Time . | . . . . . . . . . . . . Total Robot Build Rating . | . . . . . . . . . . . . Part Schematics Acquired 14 | . 1 1 . . 1 . . 1 . . 10 Parts Built . | . . . . . . . . . . . . Authchips . | . . . . . . . . . . . . Time . | . . . . . . . . . . . . Total Part Build Rating . | . . . . . . . . . . . . Parts Repaired 5 | . 2 . . . 1 . . 2 . . . Time 174 | . 52 . . . 26 . . 96 . . . Parts Recycled . | . . . . . . . . . . . . Recycled Matter . | . . . . . . . . . . . . Retrieved Matter . | . . . . . . . . . . . . Retrieved Components 29 | . 9 . . . 20 . . . . . . Parts Scanalyzed 1 | . . . . . 1 . . . . . . Part Schematics Acquired 1 | . . . . . 1 . . . . . . Parts Damaged . | . . . . . . . . . . . . Bothacking | -11 -10 -10 -10 -9 -8 -7 -7 -7 -7 -7 -7 ------------ Run | Yrd Mat Min Exi Min Mat Fac Was Fac Low Low Dat Used RIF Installer . | . . . . . . . . . . . . Robots Hacked 6 | . . . 5 . . . . . . . 1 Non-combat 3 | . . . 3 . . . . . . . . Combat 3 | . . . 2 . . . . . . . 1 Robot Hacks Applied 10 | . . . 9 . . . . . . . 1 parse_system 10 | . . . 9 . . . . . . . 1 Relay Couplers Released . | . . . . . . . . . . . . Fabnet Peak Effective % . | . . . . . . . . . . . . Robots Rewired . | . . . . . . . . . . . . Allies Hacked . | . . . . . . . . . . . . Hacks Repelled . | . . . . . . . . . . . . Allies | -11 -10 -10 -10 -9 -8 -7 -7 -7 -7 -7 -7 -------- Run | Yrd Mat Min Exi Min Mat Fac Was Fac Low Low Dat Total Allies 1 | . . . . 1 . . . . . . . Largest Group 1 | . . . . 1 . . . . . . . Highest-Rated Group 31 | . . . . 31 . . . . . . . Highest-Rated Ally 31 | . . . . 31 . . . . . . . Total Orders . | . . . . . . . . . . . . Ally Attacks 12 | . . . . 12 . . . . . . . Total Damage 107 | . . . . 107 . . . . . . . Kills 2 | . . . . 2 . . . . . . . Allies Corrupted . | . . . . . . . . . . . . Allies Melted . | . . . . . . . . . . . . Intel | -11 -10 -10 -10 -9 -8 -7 -7 -7 -7 -7 -7 ------- Run | Yrd Mat Min Exi Min Mat Fac Was Fac Low Low Dat Robot Analysis Total 138 | . 1 1 . . 1 . . 1 . . 134 Derelict Logs Recovered 6 | . . 1 . 1 . . . . 3 1 . Drone Launches . | . . . . . . . . . . . . Drone Recoveries . | . . . . . . . . . . . . Exploration | -11 -10 -10 -10 -9 -8 -7 -7 -7 -7 -7 -7 ------------- Run | Yrd Mat Min Exi Min Mat Fac Was Fac Low Low Dat Turns Passed 16014 | 285 1868 1237 1166 540 3379 715 287 2554 2491 1223 269 Spaces Moved 6692 | 142 867 493 476 151 1323 361 276 807 1189 504 103 Core 260 | 3 . . . . . . 247 8 . 2 . Treads 4467 | 139 867 493 476 151 1323 361 29 309 218 101 . Legs . | . . . . . . . . . . . . Wheels 1965 | . . . . . . . . 490 971 401 103 Hover . | . . . . . . . . . . . . Flight . | . . . . . . . . . . . . Fastest Speed 50 | 50 160 160 240 240 160 160 50 80 140 110 115 Average Speed 190 | 157 160 236 240 240 160 160 72 266 192 197 129 Slowest Speed 560 | 160 160 240 240 240 160 160 160 560 311 557 190 Overloaded Moves . | . . . . . . . . . . . . Propulsion Burnouts . | . . . . . . . . . . . . Robots Hopped . | . . . . . . . . . . . . Cave-ins Triggered . | . . . . . . . . . . . . Exploration Rate (%) 61 | 10 97 96 79 39 61 13 99 14 98 52 78 Regions Visited 11 Branch Regions 6 Pre-discovered Areas 29 | . 1 . 1 . . . . . . 1 26 Known Exits Taken 3 | . . . . . 1 . . 1 1 . . Unknown Exits Taken 6 | 1 1 1 1 1 . . . . . 1 . Scrap Searched 15 | . . 1 . 1 . . . . 2 11 . Spaces Dug 18 | . 1 . . . 8 5 . 2 1 . 1 Terrain Destroyed 258 | . 33 43 . 19 118 5 1 10 9 19 1 Melee 16 | . . . . . 7 5 . 2 1 . 1 Projectile 41 | . 1 . . . 5 . 1 8 8 18 . AOE 200 | . 32 43 . 19 106 . . . . . . Terrain Rammed . | . . . . . . . . . . . . Walls Destroyed . | . . . . . . . . . . . . Machines Disabled . | . . . . . . . . . . . . Actions | -11 -10 -10 -10 -9 -8 -7 -7 -7 -7 -7 -7 --------- Run | Yrd Mat Min Exi Min Mat Fac Was Fac Low Low Dat Total 9120 | 168 1167 540 498 304 2350 482 317 1104 1345 647 198 Wait 1420 | . 158 11 . 127 794 57 2 139 82 12 38 Move 6682 | 141 866 492 475 150 1322 361 275 806 1188 503 103 Hop . | . . . . . . . . . . . . Pick Up 170 | 4 17 9 4 2 20 16 4 56 4 32 2 Fast Attach 68 | 7 2 . . 1 8 5 4 15 9 12 5 Attach 54 | . 1 . . 1 14 4 4 3 10 15 2 Detach 14 | . . . . . 1 1 . 4 6 1 1 Swap 104 | . 9 7 3 6 26 12 4 15 12 8 2 Drop 92 | . 8 5 6 2 25 14 4 3 8 12 5 Fire 407 | 16 104 16 . 15 131 7 20 37 20 40 1 Melee 99 | . . . 9 . 7 5 . 21 6 12 39 Ram 3 | . . . . . . . . 3 . . . Kick . | . . . . . . . . . . . . Crush 3 | . 2 . . . 1 . . . . . . Escape Stasis 2 | . . . . . . . . 2 . . . Rewire . | . . . . . . . . . . . . Trap 2 | . . . 1 . 1 . . . . . . Miscellaneous . | . . . . . . . . . . . . Route ------- -11/Scrapyard -10/Materials (discovered 5 exits: [*Mat x3] / *Min / [*Sub]) -10/Mines (discovered 3 exits: [*Mat x2] / *Exi) -10/Exiles -9/Mines -8/Materials (discovered 2 exits: *Fac x2) -7/Factory (discovered 3 exits: Sto / Low x2) -7/Waste -7/Factory -7/Lower Caves -7/Lower Caves (discovered 2 exits: [*Fac] / *Dat) -7/Data Miner (discovered 1 exit: [*Pro]) History --------- Turn | Location | Event 4 | -11/Scrapyard | Discovered new exit (range 16) 286 | -11/Scrapyard | Entered Materials 306 | -10/Materials | Build established: Mutant 797 | -10/Materials | Discovered new exit (range 10) 886 | -10/Materials | Derelicts attacked the area 971 | -10/Materials | Discovered new exit (range 10) 1121 | -10/Materials | Discovered new exit (range 3) 1248 | -10/Materials | Repaired Lgt. Treads 1274 | -10/Materials | Repaired Lgt. Treads 1405 | -10/Materials | Discovered new exit (range 13) 1521 | -10/Materials | Discovered new exit (range 9) 2154 | -10/Materials | Entered Mines 2304 | -10/Mines | Discovered new exit (range 8) 2471 | -10/Mines | Learned 8 Materials zone layouts 2645 | -10/Mines | Discovered new exit (range 5) 3015 | -10/Mines | Found a hidden stash of uninstalled traps 3381 | -10/Mines | Deemed a non-threat by the Exiles lab entrance 3381 | -10/Mines | Discovered new exit (range 5) 3391 | -10/Mines | Entered Exiles 3449 | -10/Exiles | Met 8R-AWN 3490 | -10/Exiles | Met EX-HEX 3631 | -10/Exiles | Met EX-DEC 3739 | -10/Exiles | Visited The Gauntlet 3943 | -10/Exiles | Learned location of Zion (-6) 4010 | -10/Exiles | Met EX-BIN 4046 | -10/Exiles | Aligned with FarCom system 4049 | -10/Exiles | Given EX-Vault access code 4104 | -10/Exiles | Opened EX-Vault 4128 | -10/Exiles | Found Longsword +1 4178 | -10/Exiles | Warned to stay clear of 0b10 Research branches 4419 | -10/Exiles | Discovered new exit (range 11) 4485 | -10/Exiles | Warned about trapping Exiles lab 4557 | -10/Exiles | Left Exiles lab with Longsword +1 4557 | -10/Exiles | Entered Mines 4558 | -9/Mines | Met a Derelict testing a Signal Generator 4561 | -9/Mines | Assembled infested the area 4563 | -9/Mines | Found Signal Generator 4566 | -9/Mines | Assisted by a Guerilla fighting off Assembled 4678 | -9/Mines | Learned location of 1 exit from Lower Caves 4726 | -9/Mines | Received a Rocket Launcher from a helpful Derelict 5042 | -9/Mines | Discovered new exit (range 12) 5097 | -9/Mines | Entered Materials 5097 | -8/Materials | Evolved 4 slots: Propulsion x2, Utility x2 5098 | -8/Materials | Identified exit to Factory 5152 | -8/Materials | Repaired Lgt. Treads 5443 | -8/Materials | Build established: Scavenger-Mutant 5980 | -8/Materials | Hacking Suite fried by hacking feedback 7077 | -8/Materials | Lost 3 parts (1p1n1w) 7326 | -8/Materials | Build established: Mutant 7715 | -8/Materials | Discovered exit to Factory (range 5) 7857 | -8/Materials | Core integrity fell below 50% 7902 | -8/Materials | Lost 5 parts (2n1u2w) 7908 | -8/Materials | Destroyed 9 combat bots 8222 | -8/Materials | Build established: Skirmisher 8476 | -8/Materials | Entered Factory 8476 | -7/Factory | Evolved 2 slots: Utility x1, Weapon x1 9088 | -7/Factory | Identified exit to Storage 9088 | -7/Factory | Identified exit to Lower Caves 9191 | -7/Factory | Sucked down chute 9191 | -7/Factory | Entered Waste 9199 | -7/Waste | Spotted C-40 Crusher 9206 | -7/Waste | EMP discharged 9206 | -7/Waste | Spotted C-40 Crusher 9219 | -7/Waste | Destroyed C-40 Crusher 9220 | -7/Waste | Spotted C-40 Crusher 9243 | -7/Waste | Destroyed C-40 Crusher 9264 | -7/Waste | Found Broken Launcher Loader 9271 | -7/Waste | Spotted C-40 Crusher 9299 | -7/Waste | Crushed by Compactor (1 part destroyed, 1 dropped) 9302 | -7/Waste | Crushed by Compactor (1 part destroyed, 1 dropped) 9305 | -7/Waste | Crushed by Compactor (1 part destroyed, 2 dropped) 9306 | -7/Waste | EMP discharged 9306 | -7/Waste | System corruption reached 10% 9306 | -7/Waste | Destroyed C-40 Crusher 9310 | -7/Waste | Released all parts (8) 9313 | -7/Waste | Spotted C-40 Crusher 9336 | -7/Waste | Lost 3 parts (2n1w) 9340 | -7/Waste | Discovered new exit (range 11) 9370 | -7/Waste | Spotted C-40 Crusher 9406 | -7/Waste | EMP discharged 9418 | -7/Waste | System corruption reached 30% 9478 | -7/Waste | Entered Factory 9781 | -7/Factory | Build established: Hauler-Mutant 10095 | -7/Factory | Build established: Hauler-Tank 10649 | -7/Factory | Repaired Broken Launcher Loader? 11557 | -7/Factory | Discovered exit to Lower Caves (range 4) 11676 | -7/Factory | Repaired Humpback 11681 | -7/Factory | Lost 6 parts (2n3u1w) 12032 | -7/Factory | Entered Lower Caves 12033 | -7/Lower Caves | Identified exit to Lower Caves 12039 | -7/Lower Caves | Build established: Hauler-Mutant 12088 | -7/Lower Caves | Learned Factory trap positions 12171 | -7/Lower Caves | Encountered a Warlord checkpoint 12690 | -7/Lower Caves | Learned Factory emergency access door positions 12779 | -7/Lower Caves | Learned Factory emergency access door positions 12779 | -7/Lower Caves | Learned Research emergency access door positions 12779 | -7/Lower Caves | Learned Research security intel 13589 | -7/Lower Caves | Acquired the password to a Derelict Tinkerer's latest research 13599 | -7/Lower Caves | Found Prototype Special Weapon 13684 | -7/Lower Caves | Caught by Unaware searching for contraband prototypes 13718 | -7/Lower Caves | Caught by Unaware searching for contraband prototypes 13729 | -7/Lower Caves | Core integrity fell below 50% 13773 | -7/Lower Caves | Lost 8 parts (4n2u2w) 13988 | -7/Lower Caves | Build established: Hauler-Tank 14257 | -7/Lower Caves | Identified Molecular Deconstructor 14320 | -7/Lower Caves | Found Alien Artifact 14320 | -7/Lower Caves | Identified Core Expander 14320 | -7/Lower Caves | Installed Core Expander, added new Power slot 14523 | -7/Lower Caves | Entered another Lower Caves area 14573 | -7/Lower Caves | Learned location of Extension (-5) 14589 | -7/Lower Caves | Build established: Hauler-Mutant 14894 | -7/Lower Caves | Discovered new exit (range 11) 14920 | -7/Lower Caves | Lost 7 parts (1p2n2u2w) 15118 | -7/Lower Caves | Encountered a Warlord checkpoint 15442 | -7/Lower Caves | Core integrity fell below 20% 15478 | -7/Lower Caves | Lost 10 parts (1p5n3u1w) 15742 | -7/Lower Caves | Discovered new exit (range 3) 15746 | -7/Lower Caves | Entered Data Miner 15747 | -7/Data Miner | Discovered new exit (range 6) 15769 | -7/Data Miner | Met Data Miner 15793 | -7/Data Miner | Learned location of Section 7 (-2) 15793 | -7/Data Miner | Acquired the access code to Warlord's prototype stash 15814 | -7/Data Miner | Received God Mode back door access code from Data Miner 15824 | -7/Data Miner | Destroyed Data Miner 15826 | -7/Data Miner | Interfaced with the Data Conduit 15842 | -7/Data Miner | Build established: Derelict-Mutant 15914 | -7/Data Miner | Found Exp. Thermal Shield 16015 | -7/Data Miner | Destroyed by Enhanced Grunt with Neutron Cannon Last Messages --------------- 15917_ Acquired Enh. Flexi-carbon Leg. 15920_ Dropped Machine Analyzer. 15921_ Acquired Adv. Particle Charger. 15930_ System corrupted: Heat flow error (+164). 15945_ System corrupted: Component data lost. 15946_ Enhanced Grunt Antimatter Reactor severed. 15958_ Enhanced Grunt destroyed. 15962_ Dropped Mic. Nuclear Core. 15963_ System corrupted: Matter fused (-6). 15963_ Acquired Antimatter Reactor. 15964_ Acquired 74 matter. 15984_ System corrupted: Energy discharge (-159). 15994_ Hrd. Medium Armor Plating destroyed. 15999_ System corrupted: Heat flow error (+235). 15999_ Enhanced Grunt Lyr. Medium Armor Plating severed. 16005_ Imp. Carbon-fiber Leg destroyed. 16009_ Enhanced Grunt destroyed. Map ----- +----------------------------------------------------+ | | | | | | | | | | | | | | | | | | | | | | | | | | | ??????????????????????????????? | | ??????????????????????????????? | | ??????????????????????????????? | | ??????????????????????????????? | | ??????????????????????????????? | | ????#################?????????? | | ???##"""""""""""""""######????? | | ??##""""""""" """"""""# #### | | ??#"""""""""" | | ??#""""!"" | | ??#"""*"!" | | ??#""g""" = | | ??#""%@""" | | ??#"" %""" """"""" | | ??#""""=""" """"##### | | ??##" !!""" """""###???? | | ???##"*=""""" "#####?????? | | ????###!####"## "#?????????? | | ??????###??#"### "#?????????? | | ???????????#"### "#?????????? | | ???????????#"## "#?????????? | | ???????????#?## "#?????????? | | ?????????????# "#?????????? | | ?????????????### "#?????????? | | ???????????????# "##????????? | | ??????????????## ""#????????? | | ?????????????## ""#????????? | | ??????????##"#"X ""#????????? | | ??????????""""" "####?????? | | ??????????""""" X"""""?????? | | ??????????##"#"X "##"#?????? | | ???????????#"## X""""#?????? | | ??????????????## "##"#?????? | | ???????????????#######????????? | | ??????????????????????????????? | | ??????????????????????????????? | | ??????????????????????????????? | +----------------------------------------------------+ Best States ------------- Heat Dissipation 61 Energy Generation 37 Energy Capacity 550 Matter Stores 300 Matter Capacity 450 Sight Range 20 Terrain Scan Density 10 Additional Mass Support 6 EM Shielding 2 Armor Coverage 525 Resistance: KI 20 Resistance: TH 30 Core Shielding 20 Utility Shielding 66 Evasion (%) 50 Targeting Accuracy 8 Recoil Reduction 4 Matter Filtering 30 Kinecelleration 30 Offensive Hacking 20 Trap Extractor Capacity 6 Item Schematics ----------------- Cargo Storage Unit | -10/Materials | Hacked Hcp. Matter Pod | -10/Mines | Hacked Humpback | -8/Materials | Scanalyzed Lrn. Tractor Beam | -7/Factory | Hacked Combat Drone Bay | -7/Data Miner | Free Biomechanical Wings | -7/Data Miner | Free Thermal Defense Suite | -7/Data Miner | Free Disruptor Cannon | -7/Data Miner | Free Lrn. Sensor Array | -7/Data Miner | Free Imp. Component Analysis Suite | -7/Data Miner | Free Force Rifle | -7/Data Miner | Free Lgt. Regenerative Plating | -7/Data Miner | Free Arm. Medium Treads | -7/Data Miner | Free Flexi-carbon Leg | -7/Data Miner | Free Robot Schematics ------------------ G-50 Soldier | -7/Data Miner | Free M-14 Sweeper | -7/Data Miner | Free W-25 Informer | -7/Data Miner | Free B-48 Gladiator | -7/Data Miner | Free L-41 Fighter | -7/Data Miner | Free Fabricated ------------ Nothing Alien Tech Used ----------------- Core Expander Achievements -------------- Unlimited Data Challenges ------------ None Game ------ Seed SpacefoldTransportDatajack Manual? 0 Play Time 01:54:57 Cumulative 125.2 hours Start 2024.05.31 @ 17:20:05 End 2024.06.01 @ 14:22:36 Sessions 3 Manual Loads 0 Difficulty Rogue Special Mode None Game No. 59 Rogue 59 Adventurer 0 Explorer 0 Win Type - Total 2 Types 1/0/1/0/0/0/0/0/0 Lore% 61 Gallery% 73 Achievement% 55 Wizard Run 0 Options --------- Layout 1 ASCII 0 Keyboard 0 Movement Mouse Keybinds 0 Fullscreen 2 Font 18/SmallcapsGlow Map View 50x40 Zoom Use 0% Tactical HUD 1 Map Filters NONE Filters NONE Steam 1 RUN: e397f9e5-17e0-48b0-aeda-c0c005740340